Workbook

Sheet Index
A1: Index and File Details
B3: Index | H3: File Details
B5: Inputs | D5: Calculations | F5: Outputs | I5: Model | J5: Transgrid | WSB Non-Contestable Opex Forecast Model
I6: Author | J6: Transgrid
B7: Notes & Assumptions | D7: Calculations | F7: Outputs | I7: Revision | J7: 2023-06-30
B8: =Inputs!A1 -> Inputs | I8: Status | J8: Revenue Proposal
H12: Instructions
I14: Input Sheets
I15: Fill in any cells marked as input cells as seen on the right => | K15: user input
I16: Historical / Not applicable
I17: Cells not marked as inputs should not be modified.

Sheet Notes & Assumptions
A1: Assumptions & Notes
E3: User inputs in cells coloured like this
C4: * | E4: 1. Inputs and calculations are in $. Some outputs are $million.
C5: * | E5: 2. Financial years are recorded in the Opex Forecast Model as tax years (e.g. 2017/18 is shown as 2018, 2018/19 is shown as 2019)
C6: * | E6: 3. Escalation is treated as follows:
E7: a. CPI escalation and Commodity escalation are treated separately.
A10: Modifications
A11: Date | B11: Version | D11: Who | E11: Notes
A12: 2023-06-26 | B12: v1.1 | E12: Initial model development

Sheet Inputs
A1: Inputs
B2: AER amendments
B4: Output Reporting Format and Year
B5: Real
B6: 2024 | C6: The Financial Year that results are reported in.
B8: =IF(Real_or_Nom="Real", "Real $" & Report_Year, "$ Nominal") -> Real $2024
B10: Indexation and escalation
B13: Forecasts | N13: Rates
B14: Item | C14: Source | D14: Units | N14: 2023 | O14: =N14+1 -> 2024 | P14: 2025 | Q14: 2026 | R14: 2027 | S14: 2028 | T14: 2029
B15: Actual / Forecast Inflation | C15: ABS / RBA / PTRM | D15: % | N15: 0.063 | O15: 0.036 | P15: 0.02749847932 | Q15: 0.02749847932 | R15: 0.02749847932 | S15: 0.02749847932 | T15: 0.02749847932 | V15: Note: Currently set to June to June unlagged for actual/estimates and PTRM for forecasts
B16: Real labour escalation | C16: Transgrid AER FD | D16: % | O16: 0.003904656476 | P16: 0.01307648255 | Q16: 0.01154643895 | R16: 0.004330457586 | S16: 0.003009413338 | T16: =AVERAGE(O16:S16) -> 0.00717348978 | V16: Note: Based on Final Decision values applied to both the opex and capex models
B19: Cumulative factors | N19: Cumulative Factors
B20: Item | C20: Source | D20: Units | N20: =N$14 -> 2023 | O20: =O$14 -> 2024 | P20: 2025 | Q20: 2026 | R20: 2027 | S20: 2028 | T20: 2029
B21: Nominal (mid year) to Real 2024 (end year) | C21: Calculated | D21: Factor | N21: =O21*(1+O15)^0.5*(1+N15)^0.5 -> 1.068135594 | O21: =(1+O15)^0.5 -> 1.017840852 | P21: =O21/(1+O15)^0.5/(1+P15)^0.5 -> 0.9865279774 | Q21: =P21/(1+P15)^0.5/(1+Q15)^0.5 -> 0.9601259731 | R21: =Q21/(1+Q15)^0.5/(1+R15)^0.5 -> 0.9344305539 | S21: =R21/(1+R15)^0.5/(1+S15)^0.5 -> 0.9094228096 | T21: =S21/(1+S15)^0.5/(1+T15)^0.5 -> 0.8850843363 | V21: Note: this index converts from nominal mid year dollars for each year between 2022-23 to 2028-29 to dollars as at the end of 2023-24 (i.e., Real 2024, 30 June 2024).
B22: Nominal (end year) to Real 2024 (end year) | C22: Calculated | D22: Factor | N22: =O22*(1+O15) -> 1.036 | O22: 1 | P22: =O22/(1+P15) -> 0.9732374501 | Q22: =P22/(1+Q15) -> 0.9471911343 | R22: =Q22/(1+R15) -> 0.9218418843 | S22: =R22/(1+S15) -> 0.8971710449 | T22: =S22/(1+T15) -> 0.87316046
B23: Labour escalation from 2023 | C23: Calculated | D23: Factor | N23: 1 | O23: =N23*(1+O16) -> 1.003904656 | P23: 1.017032198 | Q23: 1.028775298 | R23: 1.033230366 | S23: 1.036339783 | T23: 1.043773956
B27: Maintenance expenditure
B29: Maintenance plan requirements | F29: Conversion | L29: Defect | P29: Quantities | V29: Rates (Real $2023) | Z29: Note: unit rates are assumed to be in mid-year dollars
B30: Item | C30: Plan Component | D30: Maintenance Activity | F30: Dollar Year | G30: Escalation Year | I30: Asset class | J30: Location | L30: Allowance (%) | P30: =P$20 -> 2025 | Q30: =Q$20 -> 2026 | R30: =R$20 -> 2027 | S30: =S$20 -> 2028 | T30: =T$20 -> 2029 | V30: Code | W30: Labour | X30: Materials
B31: Transmission lines | F31: 2023 | G31: 2023
B32: Requirement 1 | C32: c-i-c | D32: c-i-c | F32: Mid | I32: Transmission Lines | J32: TL39, 3L/4, 5 | L32: 0.8 | P32: c-i-c | Q32: c-i-c | R32: c-i-c | S32: c-i-c | T32: c-i-c | V32: TLELDC | W32: c-i-c | X32: c-i-c
B33: Requirement 2 | C33: c-i-c | D33: c-i-c | I33: Transmission Lines | J33: TL39, 3L/4, 5 | L33: 0.8 | P33: c-i-c | Q33: c-i-c | R33: c-i-c | S33: c-i-c | T33: c-i-c | V33: TLELDT | W33: c-i-c | X33: c-i-c
B34: Requirement 3 | C34: c-i-c | D34: c-i-c | I34: Transmission Lines | J34: TL39, 3L/4, 5 | L34: 0.8 | P34: c-i-c | Q34: c-i-c | R34: c-i-c | S34: c-i-c | T34: c-i-c | V34: TLELDC | W34: c-i-c | X34: c-i-c
B35: Requirement 4 | C35: c-i-c | D35: c-i-c | I35: Transmission Lines | J35: TL39, 3L/4, 5 | L35: 0.8 | P35: c-i-c | Q35: c-i-c | R35: c-i-c | S35: c-i-c | T35: c-i-c | V35: TLELDT | W35: c-i-c | X35: c-i-c
B36: Substations
B37: Requirement 1 | C37: c-i-c | D37: c-i-c | I37: Substations | J37: Liddell and Newcastle | L37: 2 | P37: c-i-c | Q37: c-i-c | R37: c-i-c | S37: c-i-c | T37: c-i-c | V37: S0160B | W37: c-i-c | X37: c-i-c
B38: Requirement 2 | C38: c-i-c | D38: c-i-c | I38: Substations | J38: Northern & Southern Sites | L38: 2 | P38: c-i-c | Q38: c-i-c | R38: c-i-c | S38: c-i-c | T38: c-i-c | V38: S0955C | W38: c-i-c | X38: c-i-c
B39: Requirement 3 | C39: c-i-c | D39: c-i-c | I39: Substations | J39: Northern & Southern Sites | L39: 2 | P39: c-i-c | Q39: c-i-c | R39: c-i-c | S39: c-i-c | T39: c-i-c | V39: S1SUBK | W39: c-i-c | X39: c-i-c
B40: Requirement 4 | C40: c-i-c | D40: c-i-c | I40: Substations | J40: Northern & Southern Sites | L40: 2 | P40: c-i-c | Q40: c-i-c | R40: c-i-c | S40: c-i-c | T40: c-i-c | V40: S0830V | W40: c-i-c | X40: c-i-c
B41: SIPS control
B42: Requirement 1 | C42: c-i-c | D42: c-i-c | I42: Secondary Systems | J42: All SIPS sites | L42: 3 | P42: c-i-c | Q42: c-i-c | R42: c-i-c | S42: c-i-c | T42: c-i-c | V42: 0 | W42: c-i-c | X42: c-i-c
B43: Requirement 2 | C43: c-i-c | D43: c-i-c | I43: Secondary Systems | J43: All monitored locations | L43: 3 | P43: c-i-c | Q43: c-i-c | R43: c-i-c | S43: c-i-c | T43: c-i-c | V43: PUFLR1 | W43: c-i-c | X43: c-i-c
B44: Requirement 3 | C44: c-i-c | D44: c-i-c | I44: Communications (short life) | J44: Only between WSB and connection site (Munmorah) duplicated paths | L44: 3 | P44: c-i-c | Q44: c-i-c | R44: c-i-c | S44: c-i-c | T44: c-i-c | V44: 0 | W44: c-i-c | X44: c-i-c
B48: Operating costs
B50: Direct costs | F50: Conversion | I50: Hourly rate | J50: ◄ Includes on-costs and support costs | L50: Hours per year | O50: Headcount Forecast (FTEs) | V50: Note: salaries are assumed to be in mid-year dollars
B51: Item | C51: Resource Description | D51: Units | F51: Dollar Year | G51: Escalation Year | I51: $ per hour per FTE | L51: Hours | O51: =O$14 -> 2024 | P51: 2025 | Q51: 2026 | R51: 2027 | S51: 2028 | T51: 2029
B52: Contract Management | F52: 2023 | G52: 2023 | L52: 1824.9
B53: Transgrid Representative | C53: c-i-c | D53: Various | F53: Mid | I53: c-i-c | O53: 0 | P53: 0.1559263521 | Q53: 0.4526275412 | R53: 0.4526275412 | S53: 0.4526275412 | T53: 0.4526275412
B54: Second Transgrid Representative | C54: c-i-c | D54: Various | I54: c-i-c | O54: 0 | P54: 0.4466272124 | Q54: 1.141240616 | R54: 1.141240616 | S54: 1.141240616 | T54: 1.141240616
B55: Administration Support | C55: c-i-c | D55: Various | I55: c-i-c | O55: 0 | P55: 0.3374842457 | Q55: 0.9611211573 | R55: 0.9994794235 | S55: 0.9994794235 | T55: 0.984136117
B56: Technical Support | C56: c-i-c | D56: Various | I56: c-i-c | O56: 0 | P56: 0.4211874623 | Q56: 0.8452517946 | R56: 0.581127733 | S56: 0.581127733 | T56: 0.581127733
B57: Contract Support | C57: c-i-c | D57: Various | I57: c-i-c | O57: 0 | P57: 0.300420571 | Q57: 0.8605266042 | R57: 0.8605266042 | S57: 0.8605266042 | T57: 0.8758699107
B58: Legal Support | C58: c-i-c | D58: Various | I58: c-i-c | O58: 0 | P58: 0.08362102033 | Q58: 0.1919831224 | R58: 0.1919831224 | S58: 0.1919831224 | T58: 0.1919831224
B59: Audit Support | C59: c-i-c | D59: Various | I59: c-i-c | O59: 0 | P59: 0.08822401227 | Q59: 0.2608362102 | R59: 0.2608362102 | S59: 0.2608362102 | T59: 0.2608362102
B60: External Audit | C60: c-i-c | D60: Various | I60: c-i-c | O60: 0 | P60: 0 | Q60: 0 | R60: 0 | S60: 0 | T60: 0
B61: Annual Performance Testing with PG / WSB | C61: c-i-c | D61: Various | I61: c-i-c | O61: 0 | P61: 0 | Q61: 0.08438818565 | R61: 0.08438818565 | S61: 0.08438818565 | T61: 0.08438818565
B62: Annual Performance Testing with PG / WSB | C62: c-i-c | D62: Various | I62: c-i-c | O62: 0 | P62: 0 | Q62: 0.08438818565 | R62: 0.08438818565 | S62: 0.08438818565 | T62: 0.08438818565
B63: Annual Performance Testing with PG / WSB | C63: c-i-c | D63: Various | I63: c-i-c | O63: 0 | P63: 0 | Q63: 0.08438818565 | R63: 0.08438818565 | S63: 0.08438818565 | T63: 0.08438818565
B64: Annual Defect Rectification | C64: c-i-c | D64: Various | I64: c-i-c | O64: 0 | P64: 0.03548139624 | Q64: 0.07096279248 | R64: 0.07096279248 | S64: 0.07096279248 | T64: 0.07096279248
B65: Annual Defect Rectification | C65: c-i-c | D65: Various | I65: c-i-c | O65: 0 | P65: 0.03548139624 | Q65: 0.07096279248 | R65: 0.07096279248 | S65: 0.07096279248 | T65: 0.07096279248
B66: Annual Defect Rectification | C66: c-i-c | D66: Various | I66: c-i-c | O66: 0 | P66: 0.03548139624 | Q66: 0.07096279248 | R66: 0.07096279248 | S66: 0.07096279248 | T66: 0.07096279248
B67: Network Operator appointment fee | C67: c-i-c | D67: Various | I67: c-i-c | O67: 0 | P67: 0 | Q67: 0 | R67: 0 | S67: 0 | T67: 0
B68: Network Planning
B69: Manager | C69: c-i-c | D69: Various | I69: c-i-c | O69: 0 | P69: 0.006575702778 | Q69: 0.01315140556 | R69: 0.01315140556 | S69: 0.01315140556 | T69: 0.01315140556
B70: Principal Engineer | C70: c-i-c | D70: Various | I70: c-i-c | O70: 0 | P70: 0.01315140556 | Q70: 0.02630281111 | R70: 0.02630281111 | S70: 0.02630281111 | T70: 0.02630281111
B71: Senior Engineer | C71: c-i-c | D71: Various | I71: c-i-c | O71: 0 | P71: 0.02630281111 | Q71: 0.05260562223 | R71: 0.05260562223 | S71: 0.05260562223 | T71: 0.05260562223
B72: Engineer | C72: c-i-c | D72: Various | I72: c-i-c | O72: 0 | P72: 0.05260562223 | Q72: 0.1052112445 | R72: 0.1052112445 | S72: 0.1052112445 | T72: 0.1052112445
B73: Network Operations | C73: c-i-c
B74: Operations Analysis Manager | C74: c-i-c | D74: Various | I74: c-i-c | O74: 0 | P74: 0.006575702778 | Q74: 0.01315140556 | R74: 0.01315140556 | S74: 0.01315140556 | T74: 0.01315140556
B75: OA Principal Engineer | C75: c-i-c | D75: Various | I75: c-i-c | O75: 0 | P75: 0.01150747986 | Q75: 0.02301495972 | R75: 0.02301495972 | S75: 0.02301495972 | T75: 0.02301495972
B76: OA Senior Engineer | C76: c-i-c | D76: Various | I76: c-i-c | O76: 0 | P76: 0.02301495972 | Q76: 0.04602991945 | R76: 0.04602991945 | S76: 0.04602991945 | T76: 0.04602991945
B77: OA Engineer | C77: c-i-c | D77: Various | I77: c-i-c | O77: 0 | P77: 0.04602991945 | Q77: 0.0920598389 | R77: 0.0920598389 | S77: 0.0920598389 | T77: 0.0920598389
B78: CC Network Control Manager | C78: c-i-c | D78: Various | I78: c-i-c | O78: 0 | P78: 0.003287851389 | Q78: 0.006575702778 | R78: 0.006575702778 | S78: 0.006575702778 | T78: 0.006575702778
B79: CC System Operator | C79: c-i-c | D79: Various | I79: c-i-c | O79: 0 | P79: 0.05013973368 | Q79: 0.1002794674 | R79: 0.1002794674 | S79: 0.1002794674 | T79: 0.1002794674
B80: CC Senior Engineer | C80: c-i-c | D80: Various | I80: c-i-c | O80: 0 | P80: 0.02301495972 | Q80: 0.04602991945 | R80: 0.04602991945 | S80: 0.04602991945 | T80: 0.04602991945
B81: OT Senior Engineering Officer | C81: c-i-c | D81: Various | I81: c-i-c | O81: 0 | P81: 0.04602991945 | Q81: 0.0920598389 | R81: 0.0920598389 | S81: 0.0920598389 | T81: 0.0920598389
B82: AMC Senior Engineer | C82: c-i-c | D82: Various | I82: c-i-c | O82: 0 | P82: 0.003287851389 | Q82: 0.006575702778 | R82: 0.006575702778 | S82: 0.006575702778 | T82: 0.006575702778
B83: Regulatory submissions | C83: c-i-c
B84: SIPSA annual adjustment | C84: c-i-c | D84: Various | I84: c-i-c | O84: 0 | P84: 0 | Q84: 0.02173535037 | R84: 0.02173535037 | S84: 0.02173535037 | T84: 0.02173535037
B85: SIPSA annual adjustment | C85: c-i-c | D85: Various | I85: c-i-c | O85: 0 | P85: 0 | Q85: 0.0869414015 | R85: 0.0869414015 | S85: 0.0869414015 | T85: 0.0869414015
B86: Non Contestable annual adjustment | C86: c-i-c | D86: Various | I86: c-i-c | O86: 0 | P86: 0.08333333333 | Q86: 0.004347070075 | R86: 0.004347070075 | S86: 0.004347070075 | T86: 0.004347070075
B87: Non Contestable annual adjustment | C87: c-i-c | D87: Various | I87: c-i-c | O87: 0 | P87: 0.166623196 | Q87: 0.02173535037 | R87: 0.02173535037 | S87: 0.02173535037 | T87: 0.02173535037
B88: PGSA annual adjustment | C88: c-i-c | D88: Various | I88: c-i-c | O88: 0 | P88: 0.08333333333 | Q88: 0.08333333333 | R88: 0.08333333333 | S88: 0.08333333333 | T88: 0.08333333333
B89: PGSA annual adjustment | C89: c-i-c | D89: Various | I89: c-i-c | O89: 0 | P89: 0.166623196 | Q89: 0.166623196 | R89: 0.166623196 | S89: 0.166623196 | T89: 0.166623196
B90: 2029-2034 revenue proposal | C90: c-i-c | D90: Various | I90: c-i-c | O90: 0 | P90: 0 | Q90: 0 | R90: 0 | S90: 0.06520605112 | T90: 0.04347070075
B91: 2029-2034 revenue proposal | C91: c-i-c | D91: Various | I91: c-i-c | O91: 0 | P91: 0 | Q91: 0 | R91: 0 | S91: 0.06520605112 | T91: 0.04347070075
B92: 2029-2034 revenue proposal | C92: c-i-c | D92: Various | I92: c-i-c | O92: 0 | P92: 0 | Q92: 0 | R92: 0 | S92: 0.3332898626 | T92: 0.0869414015
B93: 2029-2034 revenue proposal | C93: c-i-c | D93: Various | I93: c-i-c | O93: 0 | P93: 0 | Q93: 0 | R93: 0 | S93: 0.04347070075 | T93: 0
N95: Labour costs | O95: 0 | P95: 1212257.86 | Q95: 2637473.838 | R95: 2549007.218 | S95: 2746834.05 | T95: 2628431.68 | V95: Note: this is the total cost excluding labour escalation and inflation
B98: Other contract management costs
B101: =B98 -> Other contract management costs | F101: Conversion | N101: ="Cost (As Incurred) (Real $"&F103&", "&F104&" year)" -> Cost (As Incurred) (Real $2023, End year)
B102: Item | C102: Source | D102: Units | F102: Dollar Year | N102: =N$20 -> 2023 | O102: 2024 | P102: 2025 | Q102: 2026 | R102: 2027 | S102: 2028 | T102: 2029
B103: =B67 -> Network Operator appointment fee | C103: Transgrid | Contact with EnergyCo | D103: $Dollars | F103: 2023 | N103: 3000000 | O103: 0 | P103: 0 | Q103: 0 | R103: 0 | S103: 0 | T103: 0
B104: =B60 -> External Audit | C104: c-i-c | D104: $Dollars | F104: End | N104: c-i-c | O104: c-i-c | P104: c-i-c | Q104: c-i-c | R104: c-i-c | S104: c-i-c | T104: c-i-c
B107: Insurance costs
B110: =B107 -> Insurance costs | F110: Conversion | O110: ="Cost (As Incurred) (Real $"&F112&", "&F113&" year)" -> Cost (As Incurred) (Real $2023, Mid year)
B111: Item | C111: Source | D111: Units | F111: Dollar Year | O111: =O$20 -> 2024 | P111: 2025 | Q111: 2026 | R111: 2027 | S111: 2028 | T111: 2029
B112: Annual insurance premium | C112: c-i-c | D112: $Dollars | F112: 2023 | O112: 0 | P112: 310571 | Q112: 310571 | R112: 310571 | S112: 310571 | T112: 310571 | V112: Note: Premium is payable at commissioning, which is Nov 2024 for the first stage
F113: Mid
B116: Debt raising costs
B119: =B116 -> Debt raising costs | F119: Conversion | P119: ="Cost (As Incurred) (Real $"&F121&", "&F122&" year)" -> Cost (As Incurred) (Real $2024, End year)
B120: Item | C120: Source | D120: Units | F120: Dollar Year | P120: =P$20 -> 2025 | Q120: =Q$20 -> 2026 | R120: =R$20 -> 2027 | S120: =S$20 -> 2028 | T120: =T$20 -> 2029
B121: Debt raising cost allowance | C121: PTRM | D121: $Dollars | F121: 2024 | P121: 52264.50552 | Q121: 119090.0885 | R121: 123646.6303 | S121: 119661.7516 | T121: 115676.8729
F122: End
B125: End

Sheet Calculations
A1: Calculations | E1: =Inputs!$B$8 -> Real $2024
B3: =Inputs!$B$27 -> Maintenance expenditure | L3: Total
B4: Activity | C4: Dollar basis | D4: Units | E4: =Inputs!N$20 -> 2023 | F4: =Inputs!O$20 -> 2024 | G4: =Inputs!P$20 -> 2025 | H4: =Inputs!Q$20 -> 2026 | I4: =Inputs!R$20 -> 2027 | J4: =Inputs!S$20 -> 2028 | K4: =Inputs!T$20 -> 2029
B6: =Inputs!B31 -> Transmission lines
B7: Labour | C7: =Inputs!$B$8 -> Real $2024 | D7: Dollars | G7: 0 | H7: 0 | I7: 61543.83668 | J7: 73598.815 | K7: 0 | L7: =SUM(E7:K7) -> 135142.6517
B8: Labour escalation | C8: =Inputs!$B$8 -> Real $2024 | D8: Dollars | G8: 0 | H8: 0 | I8: 2045.124229 | J8: 2674.564997 | K8: 0 | L8: =SUM(E8:K8) -> 4719.689226
B9: Materials | C9: =Inputs!$B$8 -> Real $2024 | D9: Dollars | G9: 0 | H9: 0 | I9: 169711.7921 | J9: 202954.308 | K9: 0 | L9: =SUM(E9:K9) -> 372666.1001
B10: Sub-Total | C10: =Inputs!$B$8 -> Real $2024 | D10: Dollars | G10: =SUM(G7:G9) -> 0 | H10: 0 | I10: 233300.753 | J10: 279227.688 | K10: 0 | L10: 512528.441
B12: =Inputs!B36 -> Substations
B13: Labour | C13: =Inputs!$B$8 -> Real $2024 | D13: Dollars | G13: 0 | H13: 0 | I13: 217169.9537 | J13: 43465.72719 | K13: 0 | L13: =SUM(E13:K13) -> 260635.6809
B14: Labour escalation | C14: =Inputs!$B$8 -> Real $2024 | D14: Dollars | G14: 0 | H14: 0 | I14: 7216.637086 | J14: 1579.535113 | K14: 0 | L14: =SUM(E14:K14) -> 8796.172199
B15: Materials | C15: =Inputs!$B$8 -> Real $2024 | D15: Dollars | G15: 0 | H15: 0 | I15: 25385.37462 | J15: 2906.396952 | K15: 0 | L15: =SUM(E15:K15) -> 28291.77158
B16: Sub-Total | C16: =Inputs!$B$8 -> Real $2024 | D16: Dollars | G16: =SUM(G13:G15) -> 0 | H16: 0 | I16: 249771.9655 | J16: 47951.65926 | K16: 0 | L16: 297723.6247
B18: =Inputs!B41 -> SIPS control
B19: Labour | C19: =Inputs!$B$8 -> Real $2024 | D19: Dollars | G19: 0 | H19: 167299.9419 | I19: 167299.9419 | J19: 167299.9419 | K19: 167299.9419 | L19: =SUM(E19:K19) -> 669199.7675
B20: Labour escalation | C20: =Inputs!$B$8 -> Real $2024 | D20: Dollars | G20: 0 | H20: 4814.105747 | I20: 5559.438331 | J20: 6079.643655 | K20: 7323.38034 | L20: =SUM(E20:K20) -> 23776.56807
B21: Materials | C21: =Inputs!$B$8 -> Real $2024 | D21: Dollars | G21: 0 | H21: 146975.4578 | I21: 146975.4578 | J21: 146975.4578 | K21: 146975.4578 | L21: =SUM(E21:K21) -> 587901.8312
B22: Sub-Total | C22: =Inputs!$B$8 -> Real $2024 | D22: Dollars | G22: =SUM(G19:G21) -> 0 | H22: 319089.5054 | I22: 319834.838 | J22: 320355.0433 | K22: 321598.78 | L22: 1280878.167
B24: Labour | C24: =Inputs!$B$8 -> Real $2024 | D24: Dollars | E24: =E7+E13+E19 -> 0 | F24: 0 | G24: =G7+G13+G19 -> 0 | H24: 167299.9419 | I24: 446013.7323 | J24: 284364.4841 | K24: 167299.9419 | L24: =SUM(E24:K24) -> 1064978.1
B25: Labour escalation | C25: =Inputs!$B$8 -> Real $2024 | D25: Dollars | E25: 0 | F25: 0 | G25: 0 | H25: 4814.105747 | I25: 14821.19965 | J25: 10333.74376 | K25: 7323.38034 | L25: =SUM(E25:K25) -> 37292.4295
B26: Materials | C26: =Inputs!$B$8 -> Real $2024 | D26: Dollars | E26: 0 | F26: 0 | G26: 0 | H26: 146975.4578 | I26: 342072.6245 | J26: 352836.1628 | K26: 146975.4578 | L26: =SUM(E26:K26) -> 988859.7028
B27: Total maintenance costs | C27: =Inputs!$B$8 -> Real $2024 | D27: Dollars | E27: =SUM(E24:E26) -> 0 | F27: =SUM(F24:F26) -> 0 | G27: =SUM(G24:G26) -> 0 | H27: 319089.5054 | I27: 802907.5564 | J27: 647534.3906 | K27: 321598.78 | L27: 2091130.232
B30: =Inputs!$B$48 -> Operating costs | L30: Total
B31: Component | C31: Dollar basis | E31: =Inputs!N$20 -> 2023 | F31: =Inputs!O$20 -> 2024 | G31: =Inputs!P$20 -> 2025 | H31: =Inputs!Q$20 -> 2026 | I31: =Inputs!R$20 -> 2027 | J31: =Inputs!S$20 -> 2028 | K31: =Inputs!T$20 -> 2029
B33: =Inputs!B52 -> Contract Management
B34: Labour | C34: =Inputs!$B$8 -> Real $2024 | D34: Dollars | G34: c-i-c | H34: c-i-c | I34: c-i-c | J34: c-i-c | K34: c-i-c | L34: c-i-c
B35: Labour escalation | C35: =Inputs!$B$8 -> Real $2024 | D35: Dollars | G35: c-i-c | H35: c-i-c | I35: c-i-c | J35: c-i-c | K35: c-i-c | L35: c-i-c
B36: Other | C36: =Inputs!$B$8 -> Real $2024 | D36: Dollars | E36: =SUM(Inputs!N$103:N$104)*INDEX(IF(Inputs!$F$104="Mid",Inputs!$N$21:$T$21,Inputs!$N$22:$T$22),MATCH(Inputs!$F$103,Inputs!$N$20:$T$20,0)) -> 3108000 | F36: =SUM(Inputs!O$103:O$104)*INDEX(IF(Inputs!$F$104="Mid",Inputs!$N$21:$T$21,Inputs!$N$22:$T$22),MATCH(Inputs!$F$103,Inputs!$N$20:$T$20,0)) -> 0 | G36: c-i-c | H36: c-i-c | I36: c-i-c | J36: c-i-c | K36: c-i-c | L36: c-i-c | O36: Note: This includes network operator costs and external audit costs
B37: Sub-Total | C37: =Inputs!$B$8 -> Real $2024 | D37: Dollars | E37: =SUM(E34:E36) -> 3108000 | F37: =SUM(F34:F36) -> 0 | G37: 1760168.27 | H37: 3277402.775 | I37: 3190192.464 | J37: 3197174.16 | K37: 3216244.196 | L37: 17749181.86
B39: =Inputs!B68 -> Network Planning
B40: =$B$34 -> Labour | C40: =Inputs!$B$8 -> Real $2024 | D40: Dollars | G40: =SUMPRODUCT(Inputs!$I$69:$I$72,Inputs!P$69:P$72)*Inputs!$L$52*INDEX(IF(Inputs!$F$53="Mid",Inputs!$N$21:$T$21,Inputs!$N$22:$T$22),MATCH(Inputs!$F$52,Inputs!$N$20:$T$20,0)) -> 0 | H40: =SUMPRODUCT(Inputs!$I$69:$I$72,Inputs!Q$69:Q$72)*Inputs!$L$52*INDEX(IF(Inputs!$F$53="Mid",Inputs!$N$21:$T$21,Inputs!$N$22:$T$22),MATCH(Inputs!$F$52,Inputs!$N$20:$T$20,0)) -> 0 | I40: =SUMPRODUCT(Inputs!$I$69:$I$72,Inputs!R$69:R$72)*Inputs!$L$52*INDEX(IF(Inputs!$F$53="Mid",Inputs!$N$21:$T$21,Inputs!$N$22:$T$22),MATCH(Inputs!$F$52,Inputs!$N$20:$T$20,0)) -> 0 | J40: =SUMPRODUCT(Inputs!$I$69:$I$72,Inputs!S$69:S$72)*Inputs!$L$52*INDEX(IF(Inputs!$F$53="Mid",Inputs!$N$21:$T$21,Inputs!$N$22:$T$22),MATCH(Inputs!$F$52,Inputs!$N$20:$T$20,0)) -> 0 | K40: =SUMPRODUCT(Inputs!$I$69:$I$72,Inputs!T$69:T$72)*Inputs!$L$52*INDEX(IF(Inputs!$F$53="Mid",Inputs!$N$21:$T$21,Inputs!$N$22:$T$22),MATCH(Inputs!$F$52,Inputs!$N$20:$T$20,0)) -> 0 | L40: =SUM(E40:K40) -> 0
B41: =$B$35 -> Labour escalation | C41: =Inputs!$B$8 -> Real $2024 | D41: Dollars | G41: =G40*(Inputs!P$23-1) -> 0 | H41: =H40*(Inputs!Q$23-1) -> 0 | I41: =I40*(Inputs!R$23-1) -> 0 | J41: =J40*(Inputs!S$23-1) -> 0 | K41: =K40*(Inputs!T$23-1) -> 0 | L41: =SUM(E41:K41) -> 0
B42: =$B$36 -> Other | C42: =Inputs!$B$8 -> Real $2024 | D42: Dollars | G42: 0 | H42: 0 | I42: 0 | J42: 0 | K42: 0 | L42: =SUM(E42:K42) -> 0
B43: Sub-Total | C43: =Inputs!$B$8 -> Real $2024 | D43: Dollars | E43: 0 | F43: 0 | G43: 39690.13391 | H43: 80296.82724 | I43: 80644.54925 | J43: 80887.24203 | K43: 81467.48583 | L43: 362986.2383
B45: =Inputs!B73 -> Network Operations
B46: =$B$34 -> Labour | C46: =Inputs!$B$8 -> Real $2024 | D46: Dollars | G46: =SUMPRODUCT(Inputs!$I$74:$I$82,Inputs!P$74:P$82)*Inputs!$L$52*INDEX(IF(Inputs!$F$53="Mid",Inputs!$N$21:$T$21,Inputs!$N$22:$T$22),MATCH(Inputs!$F$52,Inputs!$N$20:$T$20,0)) -> 0 | H46: =SUMPRODUCT(Inputs!$I$74:$I$82,Inputs!Q$74:Q$82)*Inputs!$L$52*INDEX(IF(Inputs!$F$53="Mid",Inputs!$N$21:$T$21,Inputs!$N$22:$T$22),MATCH(Inputs!$F$52,Inputs!$N$20:$T$20,0)) -> 0 | I46: =SUMPRODUCT(Inputs!$I$74:$I$82,Inputs!R$74:R$82)*Inputs!$L$52*INDEX(IF(Inputs!$F$53="Mid",Inputs!$N$21:$T$21,Inputs!$N$22:$T$22),MATCH(Inputs!$F$52,Inputs!$N$20:$T$20,0)) -> 0 | J46: =SUMPRODUCT(Inputs!$I$74:$I$82,Inputs!S$74:S$82)*Inputs!$L$52*INDEX(IF(Inputs!$F$53="Mid",Inputs!$N$21:$T$21,Inputs!$N$22:$T$22),MATCH(Inputs!$F$52,Inputs!$N$20:$T$20,0)) -> 0 | K46: =SUMPRODUCT(Inputs!$I$74:$I$82,Inputs!T$74:T$82)*Inputs!$L$52*INDEX(IF(Inputs!$F$53="Mid",Inputs!$N$21:$T$21,Inputs!$N$22:$T$22),MATCH(Inputs!$F$52,Inputs!$N$20:$T$20,0)) -> 0 | L46: =SUM(E46:K46) -> 0
B47: =$B$35 -> Labour escalation | C47: =Inputs!$B$8 -> Real $2024 | D47: Dollars | G47: =G46*(Inputs!P$23-1) -> 0 | H47: =H46*(Inputs!Q$23-1) -> 0 | I47: =I46*(Inputs!R$23-1) -> 0 | J47: =J46*(Inputs!S$23-1) -> 0 | K47: =K46*(Inputs!T$23-1) -> 0 | L47: =SUM(E47:K47) -> 0
B48: =$B$36 -> Other | C48: =Inputs!$B$8 -> Real $2024 | D48: Dollars | G48: 0 | H48: 0 | I48: 0 | J48: 0 | K48: 0 | L48: =SUM(E48:K48) -> 0
B49: Sub-Total | C49: =Inputs!$B$8 -> Real $2024 | D49: Dollars | E49: 0 | F49: 0 | G49: 92066.90932 | H49: 186259.9085 | I49: 187066.4992 | J49: 187629.4596 | K49: 188975.4176 | L49: 841998.1943
B51: =Inputs!B83 -> Regulatory submissions
B52: =$B$34 -> Labour | C52: =Inputs!$B$8 -> Real $2024 | D52: Dollars | G52: =SUMPRODUCT(Inputs!$I$84:$I$93,Inputs!P$84:P$93)*Inputs!$L$52*INDEX(IF(Inputs!$F$53="Mid",Inputs!$N$21:$T$21,Inputs!$N$22:$T$22),MATCH(Inputs!$F$52,Inputs!$N$20:$T$20,0)) -> 0 | H52: =SUMPRODUCT(Inputs!$I$84:$I$93,Inputs!Q$84:Q$93)*Inputs!$L$52*INDEX(IF(Inputs!$F$53="Mid",Inputs!$N$21:$T$21,Inputs!$N$22:$T$22),MATCH(Inputs!$F$52,Inputs!$N$20:$T$20,0)) -> 0 | I52: =SUMPRODUCT(Inputs!$I$84:$I$93,Inputs!R$84:R$93)*Inputs!$L$52*INDEX(IF(Inputs!$F$53="Mid",Inputs!$N$21:$T$21,Inputs!$N$22:$T$22),MATCH(Inputs!$F$52,Inputs!$N$20:$T$20,0)) -> 0 | J52: =SUMPRODUCT(Inputs!$I$84:$I$93,Inputs!S$84:S$93)*Inputs!$L$52*INDEX(IF(Inputs!$F$53="Mid",Inputs!$N$21:$T$21,Inputs!$N$22:$T$22),MATCH(Inputs!$F$52,Inputs!$N$20:$T$20,0)) -> 0 | K52: =SUMPRODUCT(Inputs!$I$84:$I$93,Inputs!T$84:T$93)*Inputs!$L$52*INDEX(IF(Inputs!$F$53="Mid",Inputs!$N$21:$T$21,Inputs!$N$22:$T$22),MATCH(Inputs!$F$52,Inputs!$N$20:$T$20,0)) -> 0 | L52: =SUM(E52:K52) -> 0
B53: =$B$35 -> Labour escalation | C53: =Inputs!$B$8 -> Real $2024 | D53: Dollars | G53: =G52*(Inputs!P$23-1) -> 0 | H53: =H52*(Inputs!Q$23-1) -> 0 | I53: =I52*(Inputs!R$23-1) -> 0 | J53: =J52*(Inputs!S$23-1) -> 0 | K53: =K52*(Inputs!T$23-1) -> 0 | L53: =SUM(E53:K53) -> 0
B54: =$B$36 -> Other | C54: =Inputs!$B$8 -> Real $2024 | D54: Dollars | G54: 0 | H54: 0 | I54: 0 | J54: 0 | K54: 0 | L54: =SUM(E54:K54) -> 0
B55: Sub-Total | C55: =Inputs!$B$8 -> Real $2024 | D55: Dollars | E55: 0 | F55: 0 | G55: 295224.6962 | H55: 224525.3609 | I55: 225497.6584 | J55: 445160.9648 | K55: 313970.6567 | L55: 1504379.337
B57: =$B$34 -> Labour | C57: =Inputs!$B$8 -> Real $2024 | D57: Dollars | E57: =E34+E40+E46+E52 -> 0 | F57: 0 | G57: 1294855.769 | H57: 2817179.686 | I57: 2722685.34 | J57: 2933991.221 | K57: 2807521.435 | L57: =SUM(E57:K57) -> 12576233.45
B58: =$B$35 -> Labour escalation | C58: =Inputs!$B$8 -> Real $2024 | D58: Dollars | E58: 0 | F58: 0 | G58: 22054.2401 | H58: 81065.18606 | I58: 90475.83084 | J58: 106620.6055 | K58: 122896.3205 | L58: =SUM(E58:K58) -> 423112.1831
B59: =$B$36 -> Other | C59: =Inputs!$B$8 -> Real $2024 | D59: Dollars | E59: 3108000 | F59: 0 | G59: 870240 | H59: 870240 | I59: 870240 | J59: 870240 | K59: 870240 | L59: =SUM(E59:K59) -> 7459200
B60: Total operating costs | C60: =Inputs!$B$8 -> Real $2024 | D60: Dollars | E60: =SUM(E57:E59) -> 3108000 | F60: =SUM(F57:F59) -> 0 | G60: =SUM(G57:G59) -> 2187150.009 | H60: 3768484.872 | I60: 3683401.171 | J60: 3910851.826 | K60: 3800657.756 | L60: 20458545.63
B63: =Inputs!$B$107 -> Insurance costs | L63: Total
B64: Component | C64: Dollar basis | E64: =Inputs!N$20 -> 2023 | F64: =Inputs!O$20 -> 2024 | G64: =Inputs!P$20 -> 2025 | H64: =Inputs!Q$20 -> 2026 | I64: =Inputs!R$20 -> 2027 | J64: =Inputs!S$20 -> 2028 | K64: =Inputs!T$20 -> 2029
B66: Insurance premium | C66: =Inputs!$B$8 -> Real $2024 | D66: Dollars | G66: =Inputs!P$112*INDEX(IF(Inputs!$F$113="Mid",Inputs!$N$21:$T$21,Inputs!$N$22:$T$22),MATCH(Inputs!$F$112,Inputs!$N$20:$T$20,0)) -> 331731.9397 | H66: =Inputs!Q$112*INDEX(IF(Inputs!$F$113="Mid",Inputs!$N$21:$T$21,Inputs!$N$22:$T$22),MATCH(Inputs!$F$112,Inputs!$N$20:$T$20,0)) -> 331731.9397 | I66: =Inputs!R$112*INDEX(IF(Inputs!$F$113="Mid",Inputs!$N$21:$T$21,Inputs!$N$22:$T$22),MATCH(Inputs!$F$112,Inputs!$N$20:$T$20,0)) -> 331731.9397 | J66: =Inputs!S$112*INDEX(IF(Inputs!$F$113="Mid",Inputs!$N$21:$T$21,Inputs!$N$22:$T$22),MATCH(Inputs!$F$112,Inputs!$N$20:$T$20,0)) -> 331731.9397 | K66: =Inputs!T$112*INDEX(IF(Inputs!$F$113="Mid",Inputs!$N$21:$T$21,Inputs!$N$22:$T$22),MATCH(Inputs!$F$112,Inputs!$N$20:$T$20,0)) -> 331731.9397 | L66: =SUM(E66:K66) -> 1658659.698
B68: Total insurance costs | C68: =Inputs!$B$8 -> Real $2024 | D68: Dollars | G68: =G66 -> 331731.9397 | H68: =H66 -> 331731.9397 | I68: =I66 -> 331731.9397 | J68: =J66 -> 331731.9397 | K68: =K66 -> 331731.9397 | L68: =SUM(E68:K68) -> 1658659.698
B72: Total costs (excluding debt raising costs) | C72: =Inputs!$B$8 -> Real $2024 | D72: Dollars | E72: =E27+E60+E68 -> 3108000 | F72: 0 | G72: 2518881.949 | H72: 4419306.317 | I72: 4818040.667 | J72: 4890118.157 | K72: 4453988.475 | L72: =SUM(E72:K72) -> 24208335.56
B74: Debt raising costs | C74: =Inputs!$B$8 -> Real $2024 | D74: Dollars | G74: =Inputs!P$121*INDEX(IF(Inputs!$F$122="Mid",Inputs!$N$21:$T$21,Inputs!$N$22:$T$22),MATCH(Inputs!$F$121,Inputs!$N$20:$T$20,0)) -> 52264.50552 | H74: =Inputs!Q$121*INDEX(IF(Inputs!$F$122="Mid",Inputs!$N$21:$T$21,Inputs!$N$22:$T$22),MATCH(Inputs!$F$121,Inputs!$N$20:$T$20,0)) -> 119090.0885 | I74: =Inputs!R$121*INDEX(IF(Inputs!$F$122="Mid",Inputs!$N$21:$T$21,Inputs!$N$22:$T$22),MATCH(Inputs!$F$121,Inputs!$N$20:$T$20,0)) -> 123646.6303 | J74: =Inputs!S$121*INDEX(IF(Inputs!$F$122="Mid",Inputs!$N$21:$T$21,Inputs!$N$22:$T$22),MATCH(Inputs!$F$121,Inputs!$N$20:$T$20,0)) -> 119661.7516 | K74: =Inputs!T$121*INDEX(IF(Inputs!$F$122="Mid",Inputs!$N$21:$T$21,Inputs!$N$22:$T$22),MATCH(Inputs!$F$121,Inputs!$N$20:$T$20,0)) -> 115676.8729 | L74: =SUM(E74:K74) -> 530339.8489
B76: Total costs (including debt raising costs) | C76: =Inputs!$B$8 -> Real $2024 | D76: Dollars | E76: =E72+E74 -> 3108000 | F76: 0 | G76: 2571146.455 | H76: 4538396.405 | I76: 4941687.297 | J76: 5009779.908 | K76: 4569665.348 | L76: =SUM(E76:K76) -> 24738675.41
B78: End

Sheet Outputs
A1: Outputs | E1: =Inputs!B8 -> Real $2024
B3: PTRM and Proposal
B5: Operating Costs | L5: Total | M5: Total
B6: Component | C6: Dollar basis | D6: Units | E6: =Inputs!N$20 -> 2023 | F6: =Inputs!O$20 -> 2024 | G6: =Inputs!P$20 -> 2025 | H6: =Inputs!Q$20 -> 2026 | I6: =Inputs!R$20 -> 2027 | J6: =Inputs!S$20 -> 2028 | K6: =Inputs!T$20 -> 2029 | L6: Next period | M6: All years
B8: Costs
B9: Maintenance costs (excl labour escalation) | C9: =Inputs!$B$8 -> Real $2024 | D9: $Million | E9: =(Calculations!E27-Calculations!E25)/10^6 -> 0 | F9: =(Calculations!F27-Calculations!F25)/10^6 -> 0 | G9: =(Calculations!G27-Calculations!G25)/10^6 -> 0 | H9: =(Calculations!H27-Calculations!H25)/10^6 -> 0.3142753997 | I9: =(Calculations!I27-Calculations!I25)/10^6 -> 0.7880863568 | J9: =(Calculations!J27-Calculations!J25)/10^6 -> 0.6372006468 | K9: =(Calculations!K27-Calculations!K25)/10^6 -> 0.3142753997 | L9: =SUM(G9:K9) -> 2.053837803 | M9: =SUM(E9:K9) -> 2.053837803
B10: Operating Costs (excl labour escalation) | C10: =Inputs!$B$8 -> Real $2024 | D10: $Million | E10: =(Calculations!E60-Calculations!E58)/10^6 -> 3.108 | F10: =(Calculations!F60-Calculations!F58)/10^6 -> 0 | G10: =(Calculations!G60-Calculations!G58)/10^6 -> 2.165095769 | H10: =(Calculations!H60-Calculations!H58)/10^6 -> 3.687419686 | I10: =(Calculations!I60-Calculations!I58)/10^6 -> 3.59292534 | J10: =(Calculations!J60-Calculations!J58)/10^6 -> 3.804231221 | K10: =(Calculations!K60-Calculations!K58)/10^6 -> 3.677761435 | L10: =SUM(G10:K10) -> 16.92743345 | M10: =SUM(E10:K10) -> 20.03543345
B11: Insurance Costs | C11: =Inputs!$B$8 -> Real $2024 | D11: $Million | E11: =Calculations!E68/10^6 -> 0 | F11: =Calculations!F68/10^6 -> 0 | G11: =Calculations!G68/10^6 -> 0.3317319397 | H11: =Calculations!H68/10^6 -> 0.3317319397 | I11: =Calculations!I68/10^6 -> 0.3317319397 | J11: =Calculations!J68/10^6 -> 0.3317319397 | K11: =Calculations!K68/10^6 -> 0.3317319397 | L11: =SUM(G11:K11) -> 1.658659698 | M11: 1.658659698
B12: Real input cost escalation | C12: =Inputs!$B$8 -> Real $2024 | D12: $Million | E12: =(Calculations!E25+Calculations!E58)/10^6 -> 0 | F12: =(Calculations!F25+Calculations!F58)/10^6 -> 0 | G12: =(Calculations!G25+Calculations!G58)/10^6 -> 0.0220542401 | H12: =(Calculations!H25+Calculations!H58)/10^6 -> 0.08587929181 | I12: =(Calculations!I25+Calculations!I58)/10^6 -> 0.1052970305 | J12: =(Calculations!J25+Calculations!J58)/10^6 -> 0.1169543493 | K12: =(Calculations!K25+Calculations!K58)/10^6 -> 0.1302197009 | L12: =SUM(G12:K12) -> 0.4604046126 | M12: 0.4604046126
B14: Total (excluding debt raising costs) | C14: =Inputs!$B$8 -> Real $2024 | D14: $Million | E14: =SUM(E9:E12) -> 3.108 | F14: 0 | G14: 2.518881949 | H14: 4.419306317 | I14: 4.818040667 | J14: 4.890118157 | K14: 4.453988475 | L14: =SUM(G14:K14) -> 21.10033556 | M14: 24.20833556
B16: Debt Raising Costs | C16: =Inputs!$B$8 -> Real $2024 | D16: $Million | E16: =Calculations!E74/10^6 -> 0 | F16: =Calculations!F74/10^6 -> 0 | G16: =Calculations!G74/10^6 -> 0.05226450552 | H16: =Calculations!H74/10^6 -> 0.1190900885 | I16: =Calculations!I74/10^6 -> 0.1236466303 | J16: =Calculations!J74/10^6 -> 0.1196617516 | K16: =Calculations!K74/10^6 -> 0.1156768729 | L16: =SUM(G16:K16) -> 0.5303398489 | M16: 0.5303398489
B18: Total (including debt raising costs) | C18: =Inputs!$B$8 -> Real $2024 | D18: $Million | E18: =E14+E16 -> 3.108 | F18: 0 | G18: 2.571146455 | H18: 4.538396405 | I18: 4.941687297 | J18: 5.009779908 | K18: 4.569665348 | L18: =SUM(G18:K18) -> 21.63067541 | M18: 24.73867541
B21: RIN Template
B23: Table 6.1: Non-network expenditure (real $m, Jun 2024) | L23: =L$5 -> Total | M23: =M$5 -> Total
E24: =E$6 -> 2023 | F24: 2024 | G24: 2025 | H24: 2026 | I24: 2027 | J24: 2028 | K24: 2029 | L24: =L$6 -> Next period | M24: =M$6 -> All years
B26: Costs
B27: IT & Communications | C27: =Inputs!$B$8 -> Real $2024 | D27: $Million | L27: =SUM(G27:K27) -> 0 | M27: =SUM(E27:K27) -> 0
B28: Motor Vehicles | C28: =Inputs!$B$8 -> Real $2024 | D28: $Million | L28: =SUM(G28:K28) -> 0 | M28: =SUM(E28:K28) -> 0
B29: Buildings and Property | C29: =Inputs!$B$8 -> Real $2024 | D29: $Million | L29: =SUM(G29:K29) -> 0 | M29: =SUM(E29:K29) -> 0
B30: Other | C30: =Inputs!$B$8 -> Real $2024 | D30: $Million | E30: =E34*E35 -> 0 | F30: =F34*F35 -> 0 | G30: 0.3884567308 | H30: 0.8953438883 | I30: 0.9506097217 | J30: 0.9655067114 | K30: 0.8924464131 | L30: =SUM(G30:K30) -> 4.092363465 | M30: =SUM(E30:K30) -> 4.092363465 | O30: Note: Includes opex support costs or overheads
D31: $Million
B32: Total non-network opex | C32: =Inputs!$B$8 -> Real $2024 | D32: $Million | E32: =SUM(E27:E30) -> 0 | F32: 0 | G32: 0.3884567308 | H32: 0.8953438883 | I32: 0.9506097217 | J32: 0.9655067114 | K32: 0.8924464131 | L32: =SUM(G32:K32) -> 4.092363465 | M32: =SUM(E32:K32) -> 4.092363465
B34: Total labour costs | C34: Real $2024 | D34: $Million | E34: 0 | F34: 0 | G34: 1.294855769 | H34: 2.984479628 | I34: 3.168699072 | J34: 3.218355705 | K34: 2.974821377
B35: Support cost share of total labour costs | C35: N/A | D35: Percent | E35: 0.3 | F35: 0.3 | G35: 0.3 | H35: 0.3 | I35: 0.3 | J35: 0.3 | K35: 0.3
B37: 9.1 Operating and maintenance costs by category (real $, Jun 2024) | L37: =L$5 -> Total | M37: =M$5 -> Total
E38: =E$6 -> 2023 | F38: 2024 | G38: 2025 | H38: 2026 | I38: 2027 | J38: 2028 | K38: 2029 | L38: =L$6 -> Next period | M38: =M$6 -> All years
B40: Costs
B41: Maintenance (Lines and Cables, Substations, Communications and Secondary Systems) | C41: =Inputs!$B$8 -> Real $2024 | D41: $Dollars | E41: =Calculations!E10+Calculations!E16+Calculations!E22 -> 0 | F41: =Calculations!F10+Calculations!F16+Calculations!F22 -> 0 | G41: =Calculations!G10+Calculations!G16+Calculations!G22 -> 0 | H41: =Calculations!H10+Calculations!H16+Calculations!H22 -> 319089.5054 | I41: =Calculations!I10+Calculations!I16+Calculations!I22 -> 802907.5564 | J41: =Calculations!J10+Calculations!J16+Calculations!J22 -> 647534.3906 | K41: =Calculations!K10+Calculations!K16+Calculations!K22 -> 321598.78 | L41: =SUM(G41:K41) -> 2091130.232 | M41: =SUM(E41:K41) -> 2091130.232 | O41: Note: Includes maintenance costs
B42: Operations/Control Room, Grid Planning, Customer Relations and Corporate Governance | C42: =Inputs!$B$8 -> Real $2024 | D42: $Dollars | E42: =Calculations!E37+Calculations!E43+Calculations!E49 -> 3108000 | F42: =Calculations!F37+Calculations!F43+Calculations!F49 -> 0 | G42: =Calculations!G37+Calculations!G43+Calculations!G49 -> 1891925.313 | H42: =Calculations!H37+Calculations!H43+Calculations!H49 -> 3543959.511 | I42: =Calculations!I37+Calculations!I43+Calculations!I49 -> 3457903.512 | J42: =Calculations!J37+Calculations!J43+Calculations!J49 -> 3465690.862 | K42: =Calculations!K37+Calculations!K43+Calculations!K49 -> 3486687.099 | L42: =SUM(G42:K42) -> 15846166.3 | M42: =SUM(E42:K42) -> 18954166.3 | O42: Note: Includes the following operating cost categories 'Contract management', 'Network planning' and 'Network operations'
B43: Regulatory | C43: =Inputs!$B$8 -> Real $2024 | D43: $Dollars | E43: =Calculations!E55 -> 0 | F43: =Calculations!F55 -> 0 | G43: =Calculations!G55 -> 295224.6962 | H43: =Calculations!H55 -> 224525.3609 | I43: =Calculations!I55 -> 225497.6584 | J43: =Calculations!J55 -> 445160.9648 | K43: =Calculations!K55 -> 313970.6567 | L43: =SUM(G43:K43) -> 1504379.337 | M43: =SUM(E43:K43) -> 1504379.337 | O43: Note: Includes the 'Regulatory Approvals' operating cost category
B44: Insurance | C44: =Inputs!$B$8 -> Real $2024 | D44: $Dollars | E44: =Calculations!E68 -> 0 | F44: =Calculations!F68 -> 0 | G44: =Calculations!G68 -> 331731.9397 | H44: =Calculations!H68 -> 331731.9397 | I44: =Calculations!I68 -> 331731.9397 | J44: =Calculations!J68 -> 331731.9397 | K44: =Calculations!K68 -> 331731.9397 | L44: =SUM(G44:K44) -> 1658659.698 | M44: =SUM(E44:K44) -> 1658659.698 | O44: Note: Includes insurance premiums
B45: Other | C45: =Inputs!$B$8 -> Real $2024 | D45: $Dollars | E45: =Calculations!E74 -> 0 | F45: =Calculations!F74 -> 0 | G45: =Calculations!G74 -> 52264.50552 | H45: =Calculations!H74 -> 119090.0885 | I45: =Calculations!I74 -> 123646.6303 | J45: =Calculations!J74 -> 119661.7516 | K45: =Calculations!K74 -> 115676.8729 | L45: =SUM(G45:K45) -> 530339.8489 | M45: =SUM(E45:K45) -> 530339.8489 | O45: Note: Includes debt raising costs
D46: $Dollars
B47: Total opex (Incl DRC) | C47: =Inputs!$B$8 -> Real $2024 | D47: $Dollars | E47: =SUM(E41:E45) -> 3108000 | F47: 0 | G47: 2571146.455 | H47: 4538396.405 | I47: 4941687.297 | J47: 5009779.908 | K47: 4569665.348 | L47: =SUM(G47:K47) -> 21630675.41 | M47: =SUM(E47:K47) -> 24738675.41
A49: =IF(SUM(E49:K49)=0,0,1) -> 0 | B49: Check - Opex (incl DRC) | E49: =IF(ROUND(E47/10^6-E$18,3)=0,0,1) -> 0 | F49: =IF(ROUND(F47/10^6-F$18,3)=0,0,1) -> 0 | G49: 0 | H49: 0 | I49: 0 | J49: 0 | K49: 0
B51: 9.2 Operating and maintenance direct and indirect costs (real $, Jun 2024) | L51: =L$5 -> Total | M51: =M$5 -> Total
E52: =E$6 -> 2023 | F52: 2024 | G52: 2025 | H52: 2026 | I52: 2027 | J52: 2028 | K52: 2029 | L52: =L$6 -> Next period | M52: =M$6 -> All years
B54: Costs
B55: Operating and maintenance direct costs | C55: =Inputs!$B$8 -> Real $2024 | D55: $Dollars | E55: =Calculations!E27+(Calculations!E57*(1-E$35)) -> 0 | F55: =Calculations!F27+(Calculations!F57*(1-F$35)) -> 0 | G55: =Calculations!G27+(Calculations!G57*(1-G$35)) -> 906399.0385 | H55: =Calculations!H27+(Calculations!H57*(1-H$35)) -> 2291115.285 | I55: =Calculations!I27+(Calculations!I57*(1-I$35)) -> 2708787.294 | J55: =Calculations!J27+(Calculations!J57*(1-J$35)) -> 2701328.245 | K55: =Calculations!K27+(Calculations!K57*(1-K$35)) -> 2286863.785 | L55: =SUM(G55:K55) -> 10894493.65 | M55: =SUM(E55:K55) -> 10894493.65 | O55: Note: Includes 100% of the maintenance costs plus 70% of operating cost labour
B56: Operating and maintenance indirect costs | C56: =Inputs!$B$8 -> Real $2024 | D56: $Dollars | E56: =Calculations!E76-Outputs!E55 -> 3108000 | F56: =Calculations!F76-Outputs!F55 -> 0 | G56: =Calculations!G76-Outputs!G55 -> 1664747.416 | H56: =Calculations!H76-Outputs!H55 -> 2247281.12 | I56: =Calculations!I76-Outputs!I55 -> 2232900.003 | J56: =Calculations!J76-Outputs!J55 -> 2308451.663 | K56: =Calculations!K76-Outputs!K55 -> 2282801.564 | L56: =SUM(G56:K56) -> 10736181.77 | M56: =SUM(E56:K56) -> 13844181.77 | O56: Note: Includes all other opex excluding the direct costs above
B58: Total operating costs | C58: =Inputs!$B$8 -> Real $2024 | D58: $Dollars | E58: =SUM(E53:E56) -> 3108000 | F58: 0 | G58: 2571146.455 | H58: 4538396.405 | I58: 4941687.297 | J58: 5009779.908 | K58: 4569665.348 | L58: =SUM(G58:K58) -> 21630675.41 | M58: =SUM(E58:K58) -> 24738675.41
A60: =IF(SUM(E60:K60)=0,0,1) -> 0 | B60: Check - Opex (incl DRC) | E60: =IF(ROUND(E58/10^6-E$18,3)=0,0,1) -> 0 | F60: =IF(ROUND(F58/10^6-F$18,3)=0,0,1) -> 0 | G60: 0 | H60: 0 | I60: 0 | J60: 0 | K60: 0
B62: 9.3 Total capital operating and maintenance costs broken down by cost component (real $m, Jun 2024) | L62: =L$5 -> Total | M62: =M$5 -> Total
E63: =E$6 -> 2023 | F63: 2024 | G63: 2025 | H63: 2026 | I63: 2027 | J63: 2028 | K63: 2029 | L63: =L$6 -> Next period | M63: =M$6 -> All years
B65: Costs
B66: Transmission lines and substations | C66: =Inputs!$B$8 -> Real $2024 | D66: $Million | E66: =(Calculations!E10+Calculations!E16)/10^6 -> 0 | F66: =(Calculations!F10+Calculations!F16)/10^6 -> 0 | G66: =(Calculations!G10+Calculations!G16)/10^6 -> 0 | H66: =(Calculations!H10+Calculations!H16)/10^6 -> 0 | I66: =(Calculations!I10+Calculations!I16)/10^6 -> 0.4830727184 | J66: =(Calculations!J10+Calculations!J16)/10^6 -> 0.3271793473 | K66: =(Calculations!K10+Calculations!K16)/10^6 -> 0 | L66: =SUM(G66:K66) -> 0.8102520657 | M66: =SUM(E66:K66) -> 0.8102520657 | O66: Note: Transmission lines and substations maintenance expenditure
B67: SIPS control | C67: =Inputs!$B$8 -> Real $2024 | D67: $Million | E67: =Calculations!E22/10^6 -> 0 | F67: =Calculations!F22/10^6 -> 0 | G67: =Calculations!G22/10^6 -> 0 | H67: =Calculations!H22/10^6 -> 0.3190895054 | I67: =Calculations!I22/10^6 -> 0.319834838 | J67: =Calculations!J22/10^6 -> 0.3203550433 | K67: =Calculations!K22/10^6 -> 0.32159878 | L67: =SUM(G67:K67) -> 1.280878167 | M67: =SUM(E67:K67) -> 1.280878167 | O67: Note: SIPS control maintenance expenditure
B68: Other | C68: =Inputs!$B$8 -> Real $2024 | D68: $Million | E68: =Calculations!E76/10^6-SUM(E66:E67) -> 3.108 | F68: =Calculations!F76/10^6-SUM(F66:F67) -> 0 | G68: =Calculations!G76/10^6-SUM(G66:G67) -> 2.571146455 | H68: =Calculations!H76/10^6-SUM(H66:H67) -> 4.2193069 | I68: =Calculations!I76/10^6-SUM(I66:I67) -> 4.138779741 | J68: =Calculations!J76/10^6-SUM(J66:J67) -> 4.362245518 | K68: =Calculations!K76/10^6-SUM(K66:K67) -> 4.248066568 | L68: =SUM(G68:K68) -> 19.53954518 | M68: =SUM(E68:K68) -> 22.64754518 | O68: Note: Includes all other opex excluding maintenance expenditure
B70: Total operating costs | C70: =Inputs!$B$8 -> Real $2024 | D70: $Million | E70: =SUM(E66:E68) -> 3.108 | F70: =SUM(F66:F68) -> 0 | G70: 2.571146455 | H70: 4.538396405 | I70: 4.941687297 | J70: 5.009779908 | K70: 4.569665348 | L70: 21.63067541 | M70: 24.73867541
A72: =IF(SUM(E72:K72)=0,0,1) -> 0 | B72: Check - Opex (incl DRC) | E72: =IF(ROUND(E70-E$18,3)=0,0,1) -> 0 | F72: =IF(ROUND(F70-F$18,3)=0,0,1) -> 0 | G72: 0 | H72: 0 | I72: 0 | J72: 0 | K72: 0
B74: 7.1 Regulatory requirements/contractual arrangement costs (real $, Jun 2024) | L74: =L$5 -> Total | M74: =M$5 -> Total
E75: =E$6 -> 2023 | F75: 2024 | G75: 2025 | H75: 2026 | I75: 2027 | J75: 2028 | K75: 2029 | L75: =L$6 -> Next period | M75: =M$6 -> All years
B77: Costs
B78: Network Operator Appointment Fee | C78: =Inputs!$B$8 -> Real $2024 | D78: $Dollars | E78: =E56 -> 3108000 | L78: =SUM(G78:K78) -> 0 | M78: =SUM(E78:K78) -> 3108000
B79: Regulatory submissions | C79: =Inputs!$B$8 -> Real $2024 | D79: $Dollars | E79: =Calculations!E55 -> 0 | F79: =Calculations!F55 -> 0 | G79: =Calculations!G55 -> 295224.6962 | H79: =Calculations!H55 -> 224525.3609 | I79: =Calculations!I55 -> 225497.6584 | J79: =Calculations!J55 -> 445160.9648 | K79: =Calculations!K55 -> 313970.6567 | L79: =SUM(G79:K79) -> 1504379.337 | M79: =SUM(E79:K79) -> 1504379.337 | O79: Note: Regulatory submission operating cost category
B80: Environmental Approvals | C80: =Inputs!$B$8 -> Real $2024 | D80: $Dollars | E80: c-i-c | F80: c-i-c | G80: c-i-c | H80: c-i-c | I80: c-i-c | J80: c-i-c | K80: c-i-c | L80: c-i-c | M80: c-i-c
B81: Independent Engineer | C81: =Inputs!$B$8 -> Real $2024 | D81: $Dollars | E81: c-i-c | F81: c-i-c | G81: c-i-c | H81: c-i-c | I81: c-i-c | J81: c-i-c | K81: c-i-c | L81: c-i-c | M81: c-i-c | O81: Note: SIPSA Technical Reviews including 8 Independent Engineers (NOD, SIPSA, PGSA)
B82: SIPS Contract Management, Operations, Annual Testing, and Defect Rectification | C82: =Inputs!$B$8 -> Real $2024 | D82: $Dollars | E82: =Calculations!E22+Calculations!E37+Calculations!E43+Calculations!E49-E78 -> 0 | F82: =Calculations!F22+Calculations!F37+Calculations!F43+Calculations!F49-F78 -> 0 | G82: =Calculations!G22+Calculations!G37+Calculations!G43+Calculations!G49-G78 -> 1891925.313 | H82: =Calculations!H22+Calculations!H37+Calculations!H43+Calculations!H49-H78 -> 3863049.016 | I82: =Calculations!I22+Calculations!I37+Calculations!I43+Calculations!I49-I78 -> 3777738.35 | J82: =Calculations!J22+Calculations!J37+Calculations!J43+Calculations!J49-J78 -> 3786045.905 | K82: =Calculations!K22+Calculations!K37+Calculations!K43+Calculations!K49-K78 -> 3808285.879 | L82: =SUM(G82:K82) -> 17127044.46 | M82: =SUM(E82:K82) -> 17127044.46 | O82: Note: Maintenance activity for SIPS control plus operating costs categories including contract management, network planning, network operations
B84: Total operating costs | C84: =Inputs!$B$8 -> Real $2024 | D84: $Dollars | E84: 3232320 | F84: 600880 | G84: 2756950.009 | H84: 4139374.377 | I84: 4003236.009 | J84: 4231206.87 | K84: 4122256.536 | L84: 19253023.8 | M84: 23086223.8
B86: End
